fUST/lending_fUST_20251023
["ID","MTS","AMOUNT","RATE_DAILY","PERIOD"]
[392140954,1761206738288,3244.3,0.00030136,120]
[392140969,1761206883747,239.67,0.00016503,2]
[392140970,1761206976860,9460.34,0.00022937,2]
[392140971,1761206976884,10000.01,0.00022937,2]
[392140972,1761206976906,10000.01,0.00022937,2]
[392140973,1761206976927,10000.01,0.00022937,2]
[392140974,1761206976952,7033.6255285,0.00022937,2]
[392140975,1761207003101,208.13,0.00021162,2]
[392140976,1761207003533,312.2,0.00022124,2]
[392140977,1761207003948,416.26,0.00023085,2]
[392140978,1761207007286,500.0,0.00023205,6]
[392140979,1761207008142,178.4,0.00014281,30]
[392140980,1761207008585,223.0,0.00014876,30]
[392140981,1761207008992,267.6,0.00015471,30]
[392140982,1761207009428,312.2,0.00016066,30]
[392140983,1761207009507,500.0,0.00023205,6]
[392140984,1761207009869,356.79,0.00016661,30]
[392140985,1761207010275,401.39,0.00017256,30]
[392140986,1761207010784,217.63049391,0.00017851,30]
[392140987,1761207011723,500.0,0.00023205,6]
[392140988,1761207013962,236.08,0.00023205,6]
[392140989,1761207029406,200.0,0.00023021,2]
[392141041,1761207032474,-205.60680494,0.00023773,2]
[392141042,1761207032483,-932.21609568,0.00023873,2]
[392141043,1761207032495,-389.78328471,0.00023886,2]
[392141044,1761207032504,-1200.0,0.00023889,2]
[392141045,1761207032513,-300.0,0.00023889,2]
[392141046,1761207032522,-300.0,0.00023889,2]
[392141047,1761207032532,-300.0,0.00023889,2]
[392141048,1761207032542,-300.0,0.00023889,2]
[392141049,1761207032551,-300.0,0.00023889,2]
[392141050,1761207032560,-13047.66583656,0.0002389,2]
[392141051,1761207032569,-1200.0,0.00023898,2]
[392141052,1761207032579,-2299.9,0.00023899,2]
[392141053,1761207032589,-618.73323009,0.000239,2]
[392141054,1761207032599,-30605.16367734,0.000239,2]
[392141055,1761207032610,-19394.83632266,0.000239,2]
[392141056,1761207032620,-500.0,0.00023933,2]
[392141057,1761207032630,-619.35974012,0.00023933,2]
[392141058,1761207032639,-500.0,0.00023933,2]
[392141059,1761207032648,-500.0,0.00023933,2]
[392141060,1761207032657,-943.39,0.00023962,3]
[392141061,1761207032667,-471.69,0.00023962,3]
[392141062,1761207032676,-235.85,0.00023962,3]
[392141063,1761207032685,-707.55,0.00023962,3]
[392141064,1761207032695,-310.91,0.00023962,10]
[392141065,1761207032704,-485.43,0.00023962,10]
[392141066,1761207032714,-404.52,0.00023962,10]
[392141067,1761207032723,-337.1,0.00023962,10]
[392141068,1761207032732,-1886.77,0.00023968,3]
[392141069,1761207032741,-500.0,0.00023971,2]
[392141070,1761207032751,-625.70538752,0.00023971,2]
[392141071,1761207032760,-500.0,0.00023971,2]
[392141072,1761207032769,-500.0,0.00023972,2]
[392141073,1761207032778,-500.0,0.00023972,2]
[392141074,1761207032788,-500.0,0.00023972,2]
[392141075,1761207032797,-500.0,0.00023972,2]
[392141076,1761207032806,-589.39960205,0.00023972,2]
[392141077,1761207032815,-500.0,0.00023972,2]
[392141078,1761207032824,-500.0,0.00023972,2]
[392141079,1761207032833,-194.45637384,0.00023972,2]
[392141080,1761207032844,-500.0,0.00023972,2]
[392141081,1761207032854,-350.00000012,0.00023972,2]
[392141082,1761207032863,-500.0,0.00023972,2]
[392141083,1761207032872,-500.0,0.00023972,2]
[392141084,1761207032880,-500.0,0.00023972,2]
[392141085,1761207032889,-500.0,0.00023972,2]
[392141086,1761207032899,-500.0,0.00023972,2]
[392141087,1761207032908,-500.0,0.00023972,2]
[392141088,1761207032918,-500.0,0.00023972,2]
[392141089,1761207032928,-500.0,0.00023972,2]
[392141090,1761207032937,-500.0,0.00023972,2]
[392141091,1761207032947,-500.0,0.00023972,2]
[392141092,1761207032956,-500.0,0.00023972,2]
[392141093,1761207032965,-500.0,0.00023972,2]
[392141094,1761207032974,-500.0,0.00023972,2]
[392141095,1761207032984,-500.0,0.00023972,2]
[392141096,1761207032993,-500.0,0.00023972,2]
[392141097,1761207033003,-500.0,0.00023972,2]
[392141098,1761207033013,-500.0,0.00023972,2]
[392141099,1761207033022,-500.0,0.00023972,2]
[392141100,1761207033032,-500.0,0.00023972,2]
[392141101,1761207033042,-500.0,0.00023972,2]
[392141102,1761207033052,-500.0,0.00023972,2]
[392141103,1761207033061,-500.0,0.00023972,2]
[392141104,1761207033070,-500.0,0.00023972,2]
[392141105,1761207033079,-500.0,0.00023972,2]
[392141106,1761207033090,-500.0,0.00023972,2]
[392141107,1761207033099,-500.0,0.00023972,2]
[392141108,1761207033109,-500.0,0.00023972,2]
[392141109,1761207033119,-500.0,0.00023972,2]
[392141110,1761207033129,-500.0,0.00023972,2]
[392141111,1761207033138,-500.0,0.00023972,2]
[392141112,1761207033148,-500.0,0.00023972,2]
[392141113,1761207033158,-500.0,0.00023972,2]
[392141114,1761207033167,-500.0,0.00023972,2]
[392141115,1761207033177,-500.0,0.00023972,2]
[392141116,1761207033186,-500.0,0.00023972,2]
[392141117,1761207033196,-500.0,0.00023972,2]
[392141118,1761207033289,-500.0,0.00023972,2]
[392141119,1761207033299,-500.0,0.00023972,2]
[392141120,1761207033308,-500.0,0.00023972,2]
[392141121,1761207033318,-500.0,0.00023972,2]
[392141122,1761207033327,-500.0,0.00023972,2]
[392141123,1761207033337,-500.0,0.00023972,2]
[392141124,1761207033347,-500.0,0.00023972,2]
[392141125,1761207033356,-500.0,0.00023972,2]
[392141126,1761207033366,-500.0,0.00023972,2]
[392141127,1761207033376,-500.0,0.00023972,2]
[392141128,1761207033386,-500.0,0.00023972,2]
[392141129,1761207033395,-500.0,0.00023972,2]
[392141130,1761207033405,-500.0,0.00023972,2]
[392141131,1761207033415,-500.0,0.00023972,2]
[392141132,1761207033425,-500.0,0.00023972,2]
[392141133,1761207033434,-500.0,0.00023972,2]
[392141134,1761207033444,-500.0,0.00023972,2]
[392141135,1761207033455,-1397.45899629,0.00023972,2]
[392141136,1761207033466,-1397.45899629,0.00023972,2]
[392141137,1761207033475,-1397.45899629,0.00023972,2]
[392141138,1761207033485,-1397.45899629,0.00023972,2]
[392141139,1761207033494,-1397.45899629,0.00023972,2]
[392141140,1761207033504,-1397.45899629,0.00023972,2]
[392141141,1761207033515,-1397.45899629,0.00023972,2]
[392141142,1761207033524,-1397.45899629,0.00023972,2]
[392141143,1761207033534,-1397.45899629,0.00023972,2]
[392141144,1761207033545,-1397.45899629,0.00023972,2]
[392141145,1761207033554,-500.0,0.00023972,2]
[392141146,1761207033564,-1397.45899629,0.00023972,2]
[392141147,1761207033574,-1397.45899629,0.00023972,2]
[392141148,1761207033584,-393.99602046,0.00023972,2]
[392141149,1761207033594,-1397.45899629,0.00023972,2]
[392141150,1761207033604,-1397.45899629,0.00023972,2]
[392141151,1761207033613,-1397.45899629,0.00023972,2]
[392141152,1761207033623,-1397.45899629,0.00023972,2]
[392141153,1761207033633,-1397.45899629,0.00023972,2]
[392141154,1761207033642,-1397.45899629,0.00023972,2]
[392141155,1761207033652,-1397.45899629,0.00023972,2]
[392141156,1761207033662,-1397.45899629,0.00023972,2]
[392141157,1761207033671,-1397.45899629,0.00023972,2]
[392141158,1761207033681,-1397.45899629,0.00023972,2]
[392141159,1761207033690,-1397.45899629,0.00023972,2]
[392141160,1761207033700,-1397.45899629,0.00023972,2]
[392141161,1761207033710,-1397.45899629,0.00023972,2]
[392141162,1761207033719,-1397.45899629,0.00023972,2]
[392141163,1761207033729,-1397.45899629,0.00023972,2]
[392141164,1761207033739,-1397.45899629,0.00023972,2]
[392141165,1761207033749,-1397.45899629,0.00023972,2]
[392141166,1761207033759,-1397.45899629,0.00023972,2]
[392141167,1761207033768,-1397.45899629,0.00023972,2]
[392141168,1761207033778,-1397.45899629,0.00023972,2]
[392141169,1761207033787,-1397.45899629,0.00023972,2]
[392141170,1761207033797,-1397.45899629,0.00023972,2]
[392141171,1761207033806,-1397.45899629,0.00023972,2]
[392141172,1761207033816,-1397.45899629,0.00023972,2]
[392141173,1761207033825,-1397.45899629,0.00023972,2]
[392141174,1761207033836,-1397.45899629,0.00023972,2]
[392141175,1761207033850,-1397.45899629,0.00023972,2]
[392141176,1761207033860,-1397.45899629,0.00023972,2]
[392141177,1761207033869,-1397.45899629,0.00023972,2]
[392141178,1761207033879,-1397.45899629,0.00023972,2]
[392141179,1761207033889,-1397.45899629,0.00023972,2]
[392141180,1761207033898,-1397.45899629,0.00023972,2]
[392141181,1761207033908,-1397.45899629,0.00023972,2]
[392141182,1761207033917,-1397.45899629,0.00023972,2]
[392141183,1761207033929,-1397.45899629,0.00023972,2]
[392141184,1761207033938,-1397.45899629,0.00023972,2]
[392141185,1761207033948,-1397.45899629,0.00023972,2]
[392141186,1761207033958,-1397.45899629,0.00023972,2]
[392141187,1761207033967,-1397.45899629,0.00023972,2]
[392141188,1761207033979,-1397.45899629,0.00023972,2]
[392141189,1761207033988,-1397.45899629,0.00023972,2]
[392141190,1761207033997,-1397.45899629,0.00023972,2]
[392141191,1761207034008,-1397.45899629,0.00023972,2]
[392141192,1761207034017,-500.0,0.00023972,2]
[392141193,1761207034027,-500.0,0.00023972,2]
[392141194,1761207034038,-500.0,0.00023972,2]
[392141195,1761207034047,-500.0,0.00023972,2]
[392141196,1761207034057,-500.0,0.00023972,2]
[392141197,1761207034067,-500.0,0.00023972,2]
[392141198,1761207034076,-500.0,0.00023972,2]
[392141199,1761207034086,-500.0,0.00023972,2]
[392141200,1761207034096,-469.40488478,0.00023972,2]
[392141201,1761207034105,-500.0,0.00023972,2]
[392141202,1761207034115,-500.0,0.00023972,2]
[392141203,1761207034124,-1397.4589963,0.00023972,2]
[392141204,1761207034139,-1397.4589963,0.00023972,2]
[392141205,1761207034148,-1397.4589963,0.00023972,2]
[392141206,1761207034157,-1397.4589963,0.00023972,2]
[392141207,1761207034167,-1397.4589963,0.00023972,2]
[392141208,1761207034175,-1397.45899629,0.00023972,2]
[392141209,1761207034183,-500.0,0.00023972,2]
[392141210,1761207034192,-500.0,0.00023972,2]
[392141211,1761207034200,-500.0,0.00023972,2]
[392141212,1761207034209,-2299.9,0.00023972,2]
[392141213,1761207034218,-500.0,0.00023973,2]
[392141214,1761207034225,-500.0,0.00023973,2]
[392141215,1761207034234,-500.0,0.00023973,2]
[392141216,1761207034243,-500.0,0.00023973,2]
[392141217,1761207034252,-500.0,0.00023973,2]
[392141218,1761207034262,-500.0,0.00023973,2]
[392141219,1761207034274,-500.0,0.00023973,2]
[392141220,1761207034283,-501.77395195,0.00023973,2]
[392141221,1761207034293,-500.0,0.00023973,2]
[392141222,1761207034302,-158.5510937,0.00023973,2]
[392141223,1761207034311,-160.13934176,0.00023973,2]
[392141224,1761207034321,-500.0,0.00023973,2]
[392141225,1761207034332,-500.0,0.00023973,2]
[392141226,1761207034342,-500.0,0.00023973,2]
[392141227,1761207034352,-588.44976397,0.00023973,2]
[392141228,1761207034362,-500.0,0.00023973,2]
[392141229,1761207034372,-500.0,0.00023973,2]
[392141230,1761207034381,-304.35014788,0.00023973,2]
[392141231,1761207034391,-500.0,0.00023973,2]
[392141232,1761207034401,-500.0,0.00023973,2]
[392141233,1761207034411,-500.0,0.00023973,2]
[392141234,1761207034421,-500.0,0.00023973,2]
[392141235,1761207034431,-500.0,0.00023973,2]
[392141236,1761207034440,-500.0,0.00023973,2]
[392141237,1761207034449,-500.0,0.00023973,2]
[392141238,1761207034459,-500.0,0.00023973,2]
[392141239,1761207034468,-500.0,0.00023973,2]
[392141240,1761207034478,-150.95621187,0.00023973,2]
[392141241,1761207034487,-500.0,0.00023973,2]
[392141242,1761207034497,-500.0,0.00023973,2]
[392141243,1761207034507,-500.0,0.00023973,2]
[392141244,1761207034517,-208.46050167,0.00023973,2]
[392141245,1761207034526,-500.0,0.00023973,2]
[392141246,1761207034536,-500.0,0.00023973,2]
[392141247,1761207034545,-343.35490228,0.00023973,2]
[392141248,1761207034615,-502.20391075,0.00023973,2]
[392141249,1761207034632,-500.0,0.00023973,2]
[392141250,1761207034641,-500.0,0.00023973,2]
[392141251,1761207034650,-500.0,0.00023973,2]
[392141252,1761207034659,-500.0,0.00023973,2]
[392141253,1761207034669,-500.0,0.00023973,2]
[392141254,1761207034679,-500.0,0.00023973,2]
[392141255,1761207034688,-500.0,0.00023973,2]
[392141256,1761207034697,-500.0,0.00023973,2]
[392141257,1761207034706,-500.0,0.00023973,2]
[392141258,1761207034715,-500.0,0.00023973,2]
[392141259,1761207034725,-500.0,0.00023973,2]
[392141260,1761207034734,-7547.09,0.00023978,3]
[392141261,1761207034743,-3773.54,0.00023978,3]
[392141262,1761207034752,-100000.0,0.0002399,2]
[392141263,1761207034763,-500.0,0.0002399,2]
[392141264,1761207034772,-586114.91497376,0.00024,2]
[392141265,1761207034781,-300.0,0.00024,2]
[392141266,1761207034790,-300.0,0.00024,2]
[392141267,1761207034801,-28999.0,0.00024,7]
[392141268,1761207034811,-1421.0,0.00024,2]
[392141269,1761207034820,-151.0,0.00024,6]
[392141270,1761207034829,-151.0,0.00024,9]
[392141271,1761207034839,-520.33,0.00024047,2]
[392141272,1761207034853,-1857.86404622,0.00024057,2]
[392141273,1761207034863,-151.0,0.000241,9]
[392141274,1761207034873,-151.0,0.000241,9]
[392141275,1761207034885,-10829.73009074,0.00024135,2]
[392141276,1761207034895,-151.0,0.000242,10]
[392141277,1761207034905,-151.0,0.000242,7]
[392141278,1761207034915,-500.0,0.00024264,2]
[392141279,1761207034925,-3986.49154073,0.0002427,2]
[392141280,1761207034934,-151.0,0.000243,10]
[392141281,1761207034943,-10829.73009074,0.00024371,2]
[392141282,1761207034953,-13047.66583654,0.00024385,2]
[392141283,1761207034964,-151.0,0.000244,10]
[392141284,1761207034973,-151.0,0.000244,5]
[392141285,1761207034982,-1000.0,0.00024481,2]
[392141286,1761207034992,-1000.0,0.00024481,2]
[392141287,1761207035002,-1000.0,0.00024481,2]
[392141288,1761207035011,-151.0,0.000245,8]
[392141289,1761207035020,-559.26,0.00024506,2]
[392141290,1761207035029,-1000.0,0.00024521,2]
[392141291,1761207035039,-918.17723117,0.00024521,2]
[392141292,1761207035048,-1000.0,0.00024521,2]
[392141293,1761207035058,-1000.0,0.00024521,2]
[392141294,1761207035067,-1000.75722238,0.00024521,2]
[392141295,1761207035078,-1129.15048637,0.00024521,2]
[392141296,1761207035088,-1000.00281273,0.00024521,2]
[392141297,1761207035099,-1000.0,0.00024521,2]
[392141298,1761207035108,-1000.0,0.00024521,2]
[392141299,1761207035117,-1000.0,0.00024521,2]
[392141300,1761207035129,-1000.0,0.00024521,2]
[392141301,1761207035138,-1000.0,0.00024521,2]
[392141302,1761207035147,-1000.0,0.00024521,2]
[392141303,1761207035157,-1000.0,0.00024521,2]
[392141304,1761207035167,-1000.0,0.00024521,2]
[392141305,1761207035177,-1000.0,0.00024521,2]
[392141306,1761207035186,-1000.0,0.00024521,2]
[392141307,1761207035195,-1000.0,0.00024521,2]
[392141308,1761207035204,-1000.0,0.00024521,2]
[392141309,1761207035215,-1000.0,0.00024521,2]
[392141310,1761207035225,-1000.0,0.00024521,2]
[392141311,1761207035236,-1000.0,0.00024521,2]
[392141312,1761207035245,-1000.0,0.00024521,2]
[392141313,1761207035255,-1000.0,0.00024521,2]
[392141314,1761207035264,-1000.0,0.00024521,2]
[392141315,1761207035274,-1000.0,0.00024521,2]
[392141316,1761207035283,-1000.0,0.00024521,2]
[392141317,1761207035292,-1000.0,0.00024521,2]
[392141318,1761207035302,-1003.54479287,0.00024521,2]
[392141319,1761207035311,-788.18986646,0.00024521,2]
[392141320,1761207035322,-1000.0,0.00024521,2]
[392141321,1761207035332,-1000.0,0.00024521,2]
[392141322,1761207035341,-1000.0,0.00024521,2]
[392141323,1761207035350,-1000.0,0.00024521,2]
[392141324,1761207035360,-810.80399402,0.00024521,2]
[392141325,1761207035369,-510.36449907,0.00024521,2]
[392141326,1761207035378,-1000.0,0.00024521,2]
[392141327,1761207035388,-1000.0,0.00024521,2]
[392141328,1761207035398,-200.0,0.00024521,2]
[392141329,1761207035408,-500.0,0.00024538,2]
[392141330,1761207035418,-10829.73009074,0.00024606,2]
[392141331,1761207035427,-287.68027552,0.00024773,2]
[392141332,1761207035437,-500.0,0.00024773,2]
[392141333,1761207035447,-500.0,0.00024773,2]
[392141334,1761207035461,-500.0,0.00024773,2]
[392141335,1761207035471,-158.18478293,0.00024773,2]
[392141336,1761207035483,-560.3248894,0.00024773,2]
[392141337,1761207035492,-500.0,0.00024773,2]
[392141338,1761207035504,-500.0,0.00024773,2]
[392141339,1761207035515,-500.0,0.00024773,2]
[392141340,1761207035525,-500.0,0.00024773,2]
[392141341,1761207035534,-158.56908972,0.00024773,2]
[392141342,1761207035545,-500.0,0.00024773,2]
[392141343,1761207035554,-500.0,0.00024773,2]
[392141344,1761207035564,-400.39648071,0.00024773,2]
[392141345,1761207035574,-500.0,0.00024773,2]
[392141346,1761207035584,-398.53405941,0.00024773,2]
[392141347,1761207035594,-417.85079558,0.00024773,2]
[392141348,1761207035603,-257.30781879,0.00024773,2]
[392141349,1761207035612,-500.0,0.00024773,2]
[392141350,1761207035622,-504.43064108,0.00024773,2]
[392141351,1761207035631,-500.0,0.00024773,2]
[392141352,1761207035639,-500.0,0.00024773,2]
[392141353,1761207035649,-560.00262686,0.00024773,2]
[392141354,1761207035658,-501.74554836,0.00024773,2]
[392141355,1761207035668,-500.0,0.00024773,2]
[392141356,1761207035678,-500.0,0.00024773,2]
[392141357,1761207035688,-158.17042636,0.00024773,2]
[392141358,1761207035697,-500.0,0.00024773,2]
[392141359,1761207035707,-500.0,0.00024773,2]
[392141360,1761207035718,-500.0,0.00024773,2]
[392141361,1761207035728,-500.0,0.00024773,2]
[392141362,1761207035738,-500.0,0.00024773,2]
[392141363,1761207035747,-245.40932237,0.00024773,2]
[392141364,1761207035757,-500.0,0.00024773,2]
[392141365,1761207035766,-500.0,0.00024773,2]
[392141366,1761207035778,-501.32485326,0.00024773,2]
[392141367,1761207035787,-500.0,0.00024773,2]
[392141368,1761207035797,-500.0,0.00024773,2]
[392141369,1761207035807,-238.00671648,0.00024773,2]
[392141370,1761207035877,-500.0,0.00024773,2]
[392141371,1761207035887,-540.80855646,0.00024773,2]
[392141372,1761207035896,-500.0,0.00024773,2]
[392141373,1761207035905,-500.0,0.00024773,2]
[392141374,1761207035915,-158.33065031,0.00024773,2]
[392141375,1761207035925,-500.0,0.00024773,2]
[392141376,1761207035934,-500.0,0.00024773,2]
[392141377,1761207035943,-500.0,0.00024773,2]
[392141378,1761207035953,-500.0,0.00024773,2]
[392141379,1761207035962,-500.0,0.00024773,2]
[392141380,1761207035971,-500.0,0.00024773,2]
[392141381,1761207035982,-577.85395676,0.00024773,2]
[392141382,1761207035991,-26726.7070132,0.000248,2]
[392141383,1761207036000,-500.0,0.00024812,2]
[392141384,1761207036010,-10332.12632237,0.00024836,2]
[392141385,1761207036019,-10829.73009074,0.00024841,2]
[392141386,1761207036028,-500.0,0.00024873,2]
[392141387,1761207036037,-500.0,0.00024873,2]
[392141388,1761207036048,-13047.66583654,0.0002488,2]
[392141389,1761207036058,-151.0,0.00024885,2]
[392141390,1761207036067,-151.0,0.00024885,2]
[392141391,1761207036077,-151.0,0.00024885,2]
[392141392,1761207036088,-151.0,0.00024885,2]
[392141393,1761207036098,-151.0,0.00024885,2]
[392141394,1761207036107,-151.0,0.00024885,2]
[392141395,1761207036116,-253.36467973,0.00024885,2]
[392141396,1761207036126,-146194.29469218,0.000249,2]
[392141397,1761207036141,-596.84619166,0.000249,2]
[392141449,1761207037810,-229.23437734,0.00023971,2]
[392141451,1761207037819,-2299.9,0.00023972,2]
[392141453,1761207037830,-2299.9,0.00023972,2]
[392141456,1761207037840,-2299.9,0.00023972,2]
[392141458,1761207037853,-442.11452115,0.00023973,2]
[392141461,1761207037864,-319.0,0.00023985,2]
[392141463,1761207037873,-2299.9,0.00023987,2]
[392141465,1761207037883,-2299.9,0.00023987,2]
[392141467,1761207037893,-2299.9,0.00023987,2]
[392141469,1761207037902,-2299.9,0.00023987,2]
[392141471,1761207037913,-2299.9,0.00023987,2]
[392141473,1761207037923,-2299.9,0.00023987,2]
[392141475,1761207037932,-2299.9,0.00023987,2]
[392141477,1761207037941,-2299.9,0.00023987,2]
[392141478,1761207037950,-2299.9,0.00023989,2]
[392141481,1761207037960,-2299.9,0.00023989,2]
[392141483,1761207037969,-2299.9,0.00023989,2]
[392141485,1761207037978,-2299.9,0.00023989,2]
[392141487,1761207037988,-2299.9,0.00023989,2]
[392141489,1761207037997,-2299.9,0.00023998,2]
[392141491,1761207038006,-2299.9,0.00023998,2]
[392141493,1761207038016,-2299.9,0.00023998,2]
[392141495,1761207038024,-2299.9,0.00023998,2]
[392141497,1761207038034,-2299.9,0.00023998,2]
[392141499,1761207038043,-2300.068407,0.00023998,2]
[392141501,1761207038053,-397.0,0.0002418,2]
[392141503,1761207038062,-484.0,0.00024381,2]
[392141505,1761207038072,-176.62746526,0.00024773,2]
[392141507,1761207038081,-528865.09789616,0.000249,2]
[392141509,1761207038091,-160.0,0.00024936,2]
[392141511,1761207038099,-500.0,0.00024967,2]
[392141513,1761207038109,-999.00218142,0.00024972,2]
[392141515,1761207038119,-500.0,0.00024972,2]
[392141517,1761207038128,-500.0,0.00024972,2]
[392141519,1761207038141,-500.0,0.00024972,2]
[392141521,1761207038150,-500.0,0.00024972,2]
[392141523,1761207038160,-500.0,0.00024972,2]
[392141525,1761207038169,-500.0,0.00024972,2]
[392141527,1761207038179,-500.0,0.00024972,2]
[392141529,1761207038188,-500.0,0.00024972,2]
[392141531,1761207038197,-500.0,0.00024972,2]
[392141533,1761207038207,-650.43,0.00024972,2]
[392141535,1761207038217,-650.43,0.00024972,2]
[392141537,1761207038227,-894.35,0.00024972,2]
[392141539,1761207038236,-894.35,0.00024972,2]
[392141541,1761207038246,-5270.97,0.00024972,2]
[392141543,1761207038255,-5270.97,0.00024972,2]
[392141545,1761207038264,-500.0,0.00024972,2]
[392141547,1761207038273,-534.50207015,0.00024972,2]
[392141549,1761207038283,-500.0,0.00024972,2]
[392141551,1761207038292,-500.0,0.00024972,2]
[392141553,1761207038302,-500.0,0.00024972,2]
[392141555,1761207038312,-368.65447566,0.00024972,2]
[392141557,1761207038321,-387.21340072,0.00024973,2]
[392141559,1761207038331,-500.0,0.00024973,2]
[392141561,1761207038340,-500.0,0.00024973,2]
[392141563,1761207038349,-500.0,0.00024973,2]
[392141565,1761207038360,-500.0,0.00024973,2]
[392141567,1761207038370,-500.0,0.00024973,2]
[392141569,1761207038379,-500.0,0.00024973,2]
[392141571,1761207038389,-500.0,0.00024973,2]
[392141573,1761207038398,-500.0,0.00024973,2]
[392141575,1761207038407,-500.0,0.00024973,2]
[392141577,1761207038416,-500.0,0.00024973,2]
[392141579,1761207038424,-500.0,0.00024973,2]
[392141581,1761207038433,-500.0,0.00024973,2]
[392141583,1761207038441,-500.0,0.00024973,2]
[392141585,1761207038450,-500.0,0.00024973,2]
[392141587,1761207038461,-300.0,0.00024973,2]
[392141589,1761207038470,-500.0,0.00024977,2]
[392141591,1761207038479,-500.0,0.00024977,2]
[392141593,1761207038490,-500.0,0.00024977,2]
[392141595,1761207038499,-500.0,0.00024977,2]
[392141597,1761207038509,-500.0,0.00024977,2]
[392141599,1761207038519,-500.0,0.00024977,2]
[392141601,1761207038529,-272.08502943,0.00024977,2]
[392141603,1761207038538,-500.0,0.00024977,2]
[392141605,1761207038548,-500.0,0.00024977,2]
[392141607,1761207038558,-500.0,0.00024977,2]
[392141609,1761207038567,-500.0,0.00024977,2]
[392141611,1761207038577,-500.0,0.00024977,2]
[392141614,1761207038589,-500.0,0.00024977,2]
[392141616,1761207038598,-500.0,0.00024977,2]
[392141618,1761207038608,-500.0,0.00024977,2]
[392141619,1761207038617,-500.0,0.00024977,2]
[392141621,1761207038629,-500.0,0.00024977,2]
[392141623,1761207038638,-500.0,0.00024977,2]
[392141625,1761207038648,-500.0,0.00024977,2]
[392141627,1761207038657,-500.0,0.00024977,2]
[392141630,1761207038667,-500.0,0.00024977,2]
[392141632,1761207038676,-500.0,0.00024977,2]
[392141634,1761207038686,-500.0,0.00024977,2]
[392141636,1761207038695,-500.0,0.00024977,2]
[392141638,1761207038704,-278.43090321,0.00024977,2]
[392141640,1761207038714,-650.43,0.00024977,2]
[392141642,1761207038724,-650.43,0.00024977,2]
[392141644,1761207038734,-650.43,0.00024977,2]
[392141646,1761207038744,-650.43,0.00024977,2]
[392141648,1761207038753,-650.43,0.00024977,2]
[392141649,1761207038762,-650.43,0.00024977,2]
[392141650,1761207038771,-512.26619934,0.00024977,2]
[392141651,1761207038780,-650.43,0.00024977,2]
[392141652,1761207038790,-894.35,0.00024977,2]
[392141653,1761207038798,-894.35,0.00024977,2]
[392141654,1761207038807,-894.35,0.00024977,2]
[392141655,1761207038816,-894.35,0.00024977,2]
[392141656,1761207038825,-894.35,0.00024977,2]
[392141657,1761207038834,-894.35,0.00024977,2]
[392141658,1761207038846,-894.35,0.00024977,2]
[392141659,1761207038855,-1766.63,0.00024977,2]
[392141660,1761207038865,-1766.63,0.00024977,2]
[392141661,1761207038874,-1766.63,0.00024977,2]
[392141662,1761207038883,-1766.63,0.00024977,2]
[392141663,1761207038891,-1766.63,0.00024977,2]
[392141664,1761207038900,-1766.63,0.00024977,2]
[392141666,1761207038910,-1766.63,0.00024977,2]
[392141668,1761207038919,-1766.63,0.00024977,2]
[392141669,1761207038929,-1766.63,0.00024977,2]
[392141671,1761207038939,-5270.97,0.00024977,2]
[392141673,1761207038949,-5270.97,0.00024977,2]
[392141675,1761207038958,-5270.97,0.00024977,2]